fUST/lending_fUST_20240811
["ID","MTS","AMOUNT","RATE_DAILY","PERIOD"]
[334609520,1723333842858,-506.59117029,0.00020821,3]
[334609521,1723333842868,-500.0,0.00020821,3]
[334609522,1723333842877,-500.0,0.00020821,3]
[334609523,1723333842886,-500.0,0.00020821,3]
[334609524,1723333842895,-500.0,0.00020821,3]
[334609526,1723333842905,-505.04034879,0.00020821,3]
[334609527,1723333842916,-500.0,0.00020821,3]
[334609528,1723333842926,-500.0,0.00020821,3]
[334609529,1723333842935,-510.27397202,0.00020821,3]
[334609530,1723333842944,-500.0,0.00020821,3]
[334609531,1723333842953,-500.0,0.00020821,3]
[334609533,1723333842962,-1186.71,0.00020821,3]
[334609535,1723333842971,-500.0,0.00020821,3]
[334609536,1723333842980,-500.0,0.00020821,3]
[334609538,1723333842989,-500.0,0.00020821,3]
[334609540,1723333842998,-1008.55,0.00020821,3]
[334609541,1723333843007,-166.12638046,0.00020821,3]
[334609542,1723333843018,-500.0,0.00020821,3]
[334609543,1723333843027,-509.68731067,0.00020821,3]
[334609544,1723333843037,-962.38,0.00020821,3]
[334609545,1723333843046,-151.0,0.00020821,2]
[334609546,1723333843055,-151.0,0.00020821,2]
[334609547,1723333843064,-151.0,0.00020821,2]
[334609548,1723333843074,-151.0,0.00020821,2]
[334609549,1723333843083,-500.0,0.00020821,3]
[334609550,1723333843093,-631.56724369,0.00020821,3]
[334609551,1723333843103,-151.0,0.00020821,2]
[334609552,1723333843113,-151.0,0.00020821,2]
[334609553,1723333843125,-151.0,0.00020821,2]
[334609554,1723333843135,-151.0,0.00020821,2]
[334609555,1723333843146,-500.0,0.00020821,3]
[334609556,1723333843159,-151.0,0.00020821,2]
[334609557,1723333843170,-151.0,0.00020821,2]
[334609558,1723333843179,-151.0,0.00020821,2]
[334609559,1723333843189,-500.0,0.00020821,3]
[334609560,1723333843198,-151.0,0.00020821,2]
[334609561,1723333843208,-268.974734,0.00020821,2]
[334609562,1723333843217,-505.97789512,0.00020821,3]
[334609563,1723333843226,-502.81171245,0.00020821,3]
[334609564,1723333843236,-500.0,0.00020821,3]
[334609565,1723333843246,-500.0,0.00020821,3]
[334609566,1723333843257,-500.0,0.00020821,3]
[334609567,1723333843266,-500.0,0.00020821,3]
[334609568,1723333843276,-500.0,0.00020821,3]
[334609569,1723333843286,-500.0,0.00020821,3]
[334609570,1723333843295,-500.0,0.00020821,3]
[334609571,1723333843305,-500.0,0.00020821,3]
[334609572,1723333843315,-1050.28,0.00020821,3]
[334609573,1723333843325,-500.0,0.00020821,3]
[334609574,1723333843336,-500.0,0.00020821,3]
[334609575,1723333843347,-1081.39863343,0.00020821,3]
[334609580,1723333843836,-218.92351129,0.0002082,2]
[334609690,1723333846479,-151.0,0.00020699,2]
[334609691,1723333846488,-151.0,0.00020711,2]
[334609692,1723333846507,-151.0,0.0002079,2]
[334609693,1723333846518,-151.0,0.0002081,2]
[334609694,1723333846529,-302.23,0.0002082,2]
[334609695,1723333846552,-2472.18430156,0.0002082,2]
[334609696,1723333846562,-360.60136657,0.00020821,3]
[334609697,1723333846572,-500.0,0.00020821,3]
[334609698,1723333846581,-500.0,0.00020821,3]
[334609699,1723333846591,-500.0,0.00020821,3]
[334609700,1723333846600,-575.15748912,0.00020821,3]
[334609701,1723333846610,-500.0,0.00020821,3]
[334609702,1723333846619,-500.0,0.00020821,3]
[334609703,1723333846628,-496.86546092,0.00020821,3]
[334609705,1723334012937,165.096199,0.00014247,2]
[334609708,1723334173266,2993.0,0.0002333,30]
[334609713,1723334491361,200.0,0.00024914,120]
[334609714,1723334502990,222.74529,0.00014247,2]
[334609715,1723334551286,200.0,0.00024958,120]
[334609716,1723334567385,500.0,0.00027,120]
[334609719,1723334580389,500.0,0.00027,120]
[334609720,1723334592357,500.0,0.00027,120]
[334609721,1723334593230,236.79,0.0002067,120]
[334609733,1723334600780,500.0,0.00027,120]
[334609734,1723334610109,500.0,0.00027,120]
[334609735,1723334617540,500.0,0.00027,120]
[334609736,1723334625924,500.0,0.00027,120]
[334609738,1723334637660,500.0,0.00027,120]
[334609739,1723334640169,1233.0,0.00025,60]
[334609740,1723334651999,500.0,0.00027,120]
[334609742,1723334675239,256.917154,0.00027,120]
[334609743,1723334684616,1223.0,0.0002333,30]
[334609744,1723334698783,182.28563981,0.00027,120]
[334609745,1723334805718,182.28563981,0.00027,120]
[334609746,1723334826131,-534.30826095,0.00015744,2]
[334609747,1723334826156,-320.35358781,0.00016309,2]
[334609748,1723334826177,-833.78545195,0.00018629,2]
[334609749,1723334826199,-285.10857141,0.00018679,2]
[334609750,1723334826223,-407.43680652,0.00018696,2]
[334609751,1723334826245,-543.46251259,0.00018696,2]
[334609752,1723334826267,-300.0,0.00018776,2]
[334609753,1723334826289,-5248.90719905,0.00018777,2]
[334609754,1723334827102,-5708.17607815,0.00018777,2]
[334609755,1723334827124,-448.012785,0.00018904,2]
[334609756,1723334827149,-224.793288,0.00018914,2]
[334609757,1723334827169,-5239.32328819,0.00019477,2]
[334609758,1723334827191,-175.363478,0.00019663,2]
[334609759,1723334827215,-153.0,0.00019716,2]
[334609760,1723334827238,-175.363478,0.00019738,2]
[334609761,1723334827263,-149.92684,0.00019738,2]
[334609762,1723334827284,-1412.0,0.00019856,2]
[334609763,1723334827306,-1883.54886395,0.00019999,2]
[334609764,1723334827327,-494.60608226,0.00019999,2]
[334609765,1723334827348,-248.18905241,0.00019999,2]
[334609766,1723334827370,-184.27538653,0.0002,2]
[334609767,1723334827391,-150.0,0.0002,2]
[334609768,1723334827412,-534.13,0.00020153,2]
[334609769,1723334827432,-151.0,0.00020191,2]
[334609770,1723334827453,-294.95328234,0.0002028,2]
[334609771,1723334827651,-151.0,0.00020296,2]
[334609772,1723334827672,-151.0,0.00020401,2]
[334609773,1723334827692,-507.0,0.0002043,2]
[334609774,1723334827715,-151.0,0.00020506,2]
[334609775,1723334827735,-1216.0,0.00020578,12]
[334609776,1723334827755,-2457.08228365,0.0002058,3]
[334609777,1723334827776,-151.0,0.00020611,2]
[334609778,1723334827796,-1938.53368952,0.00020616,2]
[334609779,1723334827818,-420.0,0.00020654,2]
[334609780,1723334827838,-500.0,0.00020669,2]
[334609781,1723334827858,-190.75631149,0.00020669,2]
[334609782,1723334827877,-492.41763297,0.00020669,2]
[334609783,1723334827898,-500.0,0.00020669,2]
[334609784,1723334827918,-500.0,0.00020669,2]
[334609785,1723334827939,-500.0,0.00020669,2]
[334609786,1723334827963,-500.0,0.00020669,2]
[334609787,1723334827984,-500.0,0.00020669,2]
[334609788,1723334828004,-424.08667364,0.00020669,2]
[334609789,1723334828027,-500.0,0.00020669,2]
[334609790,1723334828051,-500.0,0.00020669,2]
[334609791,1723334828075,-500.0,0.00020669,2]
[334609792,1723334828095,-500.0,0.00020669,2]
[334609793,1723334828116,-500.0,0.00020669,2]
[334609794,1723334828138,-500.0,0.00020669,2]
[334609795,1723334828165,-500.0,0.00020669,2]
[334609796,1723334828188,-500.0,0.00020669,2]
[334609797,1723334828211,-500.0,0.00020669,2]
[334609798,1723334828233,-500.0,0.00020669,2]
[334609799,1723334828256,-500.0,0.00020669,2]
[334609800,1723334828277,-500.0,0.00020669,2]
[334609801,1723334828297,-650.0,0.00020669,2]
[334609802,1723334828320,-500.0,0.00020669,2]
[334609803,1723334828341,-500.0,0.00020669,2]
[334609804,1723334828364,-500.0,0.00020669,2]
[334609805,1723334828385,-500.0,0.00020669,2]
[334609806,1723334828409,-5218.30378748,0.0002067,11]
[334609807,1723334828431,-27524.47338742,0.0002067,2]
[334609808,1723334841179,-957.11071957,0.0002028,2]
[334609809,1723334841203,-192950.56691543,0.0002067,2]
[334609810,1723334842157,-98931.47722915,0.0002067,2]
[334609811,1723334842179,-200.0,0.00020673,2]
[334609812,1723334842201,-200.0,0.00020673,2]
[334609813,1723334842226,-2606.52015398,0.0002068,11]
[334609814,1723334842251,-315765.78070953,0.0002068,2]
[334609817,1723335023710,165.096199,0.00014247,2]
[334609911,1723335032682,-489.20732557,0.00019477,2]
[334609913,1723335032693,-183.773879,0.00019793,2]
[334609915,1723335032703,-154.93020408,0.00019999,2]
[334609917,1723335032712,-183.773879,0.00020137,2]
[334609919,1723335032721,-510.26340693,0.0002028,2]
[334609921,1723335032731,-183.773879,0.00020481,2]
[334609923,1723335032740,-1412.0,0.00020499,2]
[334609925,1723335032750,-2781.68260631,0.00020573,2]
[334609927,1723335032759,-1908.29656111,0.0002058,2]
[334609929,1723335032771,-91.70343889,0.0002058,2]
[334609931,1723335032780,-773.58416144,0.0002067,2]
[334609934,1723335032792,-1390.0,0.0002067,2]
[334609938,1723335032822,-21545.297515,0.0002067,2]
[334609940,1723335032836,-324.87774632,0.0002067,2]
[334610082,1723335038436,-259.8449995,0.0002067,2]
[334610083,1723335038448,-547.3820516,0.0002067,2]
[334610084,1723335038534,-46840.1919041,0.0002067,2]
[334610085,1723335038550,-8426.9179306,0.0002067,2]
[334610088,1723335040593,-2000.0,0.0002058,2]
[334610089,1723335040603,-33702.48122105,0.0002067,2]
[334610090,1723335040614,-147038.07845539,0.0002067,2]
[334610091,1723335040624,-200.0,0.00020673,2]
[334610092,1723335040634,-232.64434927,0.00020673,2]
[334610093,1723335040643,-200.0,0.00020673,2]
[334610094,1723335040653,-500.0,0.00020679,2]
[334610095,1723335040662,-500.0,0.00020679,2]
[334610096,1723335040671,-500.0,0.00020679,2]
[334610097,1723335040680,-500.0,0.00020679,2]
[334610098,1723335040690,-500.0,0.00020679,2]
[334610099,1723335040699,-500.0,0.00020679,2]
[334610100,1723335040708,-244.69234308,0.00020679,2]
[334610101,1723335040718,-500.0,0.00020679,2]
[334610102,1723335040727,-500.0,0.00020679,2]
[334610103,1723335040736,-551.86067155,0.00020679,2]
[334610104,1723335040745,-500.0,0.00020679,2]
[334610105,1723335040764,-500.0,0.00020679,2]
[334610106,1723335040775,-500.0,0.00020679,2]
[334610107,1723335040786,-500.0,0.00020679,2]
[334610108,1723335040795,-500.0,0.00020679,2]
[334610109,1723335040805,-636.30247008,0.00020679,2]
[334610110,1723335040815,-2609.15189374,0.0002068,11]
[334610111,1723335040824,-33137.87665225,0.0002068,2]
[334610116,1723335043258,-3300.1543449,0.0002068,2]
[334610117,1723335043363,-347.85600012,0.0002068,2]
[334610174,1723335046406,-8560.43951722,0.0002068,2]
[334610175,1723335046593,-839.77291122,0.0002068,2]
[334610176,1723335046623,-103.81569648,0.0002068,2]
[334610183,1723335523543,218.58411,0.00014247,2]
[334610184,1723335597679,3372.89762307,0.00014247,2]
[334610185,1723335620314,834.00483555,0.00014247,2]
[334610187,1723335737319,165.99516445,0.00014247,2]
[334610191,1723335936143,-168.40710037,0.00016159,2]
[334610196,1723336048151,-183.773879,0.00018207,2]
[334610197,1723336048172,-224.7932899,0.00018216,2]
[334610198,1723336048194,-300.0,0.00018434,2]
[334610199,1723336048215,-3069.64704275,0.00018435,2]
[334610200,1723336057245,165.096199,0.00014247,2]
[334610204,1723336103072,4513.55657017,0.000125,2]
[334610210,1723336154109,-154.79497275,0.00016159,2]
[334610211,1723336176490,239.84131782,0.00015151,2]
[334610212,1723336176515,266.00111758,0.00015151,2]
[334610213,1723336176542,2340.92135278,0.00015151,2]
[334610214,1723336207162,3034.73466241,0.00027,120]
[334610234,1723336232459,-210.0,0.00018385,2]
[334610235,1723336232472,-4340.4427763,0.00018386,2]
[334610252,1723336238552,-5560.36626058,0.00018386,2]
[334610254,1723336238568,-284.83809153,0.00018386,2]
[334610260,1723336238613,-1493.28725317,0.00018386,2]
[334610262,1723336238624,-10131.41857562,0.00018386,2]
[334610263,1723336238634,-425.612145,0.00018904,2]
[334610264,1723336238644,-665.40284724,0.00018945,2]
[334610265,1723336238653,-210.54479745,0.00018945,2]
[334610266,1723336238662,-189.8862147,0.00018976,2]
[334610267,1723336238672,-271.65093339,0.00019139,2]
[334610268,1723336238681,-154.76012181,0.00019155,2]
[334610269,1723336238690,-282.4264462,0.00019155,2]
[334610270,1723336238699,-620.64364415,0.00019167,2]
[334610271,1723336238709,-559.00369446,0.00019451,2]
[334610272,1723336238719,-183.698038,0.00019663,2]
[334610273,1723336238729,-176.608085,0.00019663,2]
[334610274,1723336238738,-170.767708,0.00019663,2]
[334610275,1723336238747,-164.789857,0.00019663,2]
[334610276,1723336238758,-149.926841,0.00019663,2]
[334610277,1723336238770,-175.363478,0.00019663,2]
[334610278,1723336238779,-153.0,0.00019766,2]
[334610279,1723336238788,-153.0,0.00019766,2]
[334610280,1723336238797,-153.0,0.00019766,2]
[334610281,1723336238807,-2433.97228046,0.00019769,2]
[334610282,1723336238817,-284.83809153,0.00019773,2]
[334610283,1723336238829,-500.0,0.00019869,2]
[334610284,1723336238840,-500.0,0.00019869,2]
[334610285,1723336238849,-500.0,0.00019869,2]
[334610286,1723336238858,-500.0,0.00019869,2]
[334610287,1723336238868,-500.0,0.00019869,2]
[334610288,1723336238878,-500.0,0.00019869,2]
[334610289,1723336238888,-500.0,0.00019869,2]
[334610290,1723336238897,-500.0,0.00019869,2]
[334610291,1723336238907,-500.0,0.00019869,2]
[334610292,1723336238917,-500.0,0.00019869,2]
[334610293,1723336238927,-500.0,0.00019869,2]
[334610294,1723336238936,-500.0,0.00019869,2]
[334610295,1723336238946,-500.0,0.00019869,2]
[334610296,1723336238956,-500.0,0.00019869,2]
[334610297,1723336238965,-500.0,0.00019869,2]
[334610298,1723336238974,-500.0,0.00019869,2]
[334610299,1723336238983,-500.0,0.00019869,2]
[334610300,1723336238993,-500.0,0.00019869,2]
[334610301,1723336239002,-500.0,0.00019869,2]
[334610302,1723336239011,-500.0,0.00019869,2]
[334610303,1723336239021,-500.0,0.00019869,2]
[334610304,1723336239030,-500.0,0.00019869,2]
[334610305,1723336239039,-500.0,0.00019869,2]
[334610306,1723336239048,-500.0,0.00019869,2]
[334610307,1723336239057,-500.0,0.00019869,2]
[334610308,1723336239066,-628.91920144,0.00019869,2]
[334610309,1723336239077,-500.0,0.00019869,2]
[334610310,1723336239086,-500.0,0.00019869,2]
[334610311,1723336239095,-500.0,0.00019869,2]
[334610312,1723336239104,-500.0,0.00019869,2]
[334610313,1723336239113,-500.0,0.00019869,2]
[334610314,1723336239122,-500.0,0.00019869,2]
[334610315,1723336239132,-500.0,0.00019869,2]
[334610316,1723336239141,-500.0,0.00019869,2]
[334610317,1723336239150,-500.0,0.00019869,2]
[334610318,1723336239160,-250.0,0.00019869,2]
[334610319,1723336239169,-209.7270822,0.00019869,2]
[334610320,1723336239178,-500.0,0.00019869,2]
[334610321,1723336239187,-500.0,0.00019869,2]
[334610322,1723336239197,-500.0,0.00019869,2]
[334610323,1723336239206,-280.79227276,0.00019869,2]
[334610324,1723336239215,-500.0,0.00019869,2]
[334610325,1723336239224,-500.0,0.00019869,2]
[334610326,1723336239234,-500.0,0.00019869,2]
[334610327,1723336239243,-500.0,0.00019869,2]
[334610328,1723336239252,-334.29990006,0.00019869,2]
[334610329,1723336239262,-500.0,0.00019869,2]
[334610330,1723336239272,-500.0,0.00019869,2]
[334610331,1723336239281,-500.0,0.00019869,2]
[334610332,1723336239291,-500.0,0.00019869,2]
[334610333,1723336239300,-500.0,0.00019869,2]
[334610334,1723336239309,-500.0,0.00019869,2]
[334610335,1723336239319,-500.0,0.00019869,2]
[334610336,1723336239329,-500.0,0.00019869,2]
[334610337,1723336239339,-500.0,0.00019869,2]
[334610338,1723336239348,-500.0,0.00019869,2]
[334610339,1723336239358,-500.0,0.00019869,2]
[334610340,1723336239367,-500.0,0.00019869,2]
[334610341,1723336239376,-250.08363093,0.00019869,2]
[334610342,1723336239386,-500.0,0.00019869,2]
[334610343,1723336239395,-500.0,0.00019869,2]
[334610344,1723336239404,-500.0,0.00019869,2]
[334610345,1723336239414,-500.0,0.00019869,2]
[334610346,1723336239423,-500.0,0.00019869,2]
[334610347,1723336239432,-7827.45568121,0.0001987,11]
[334610348,1723336239442,-1303.26007699,0.0001987,11]
[334610349,1723336239451,-321454.777349,0.0001987,2]
[334610350,1723336239460,-200.0,0.00019873,2]
[334610351,1723336239469,-200.0,0.00019873,2]
[334610352,1723336239478,-200.0,0.00019873,2]
[334610353,1723336239488,-152907.51748423,0.0001988,2]
[334610378,1723336242411,-191350.60683536,0.0001988,2]
[334610428,1723336246766,-189.8862147,0.00018969,2]
[334610429,1723336246776,-232.64434927,0.00019873,2]
[334610430,1723336246786,-123096.44603656,0.0001988,2]
[334610431,1723336246798,-6822.51062828,0.0001988,2]
[334610432,1723336246816,-36677.23288384,0.0001988,2]
[334610433,1723336290838,182.28563981,0.00027,120]
[334610434,1723336348294,182.28563981,0.00025,120]
[334610435,1723336455842,182.28563981,0.00025,120]
[334610437,1723336523220,207.654904,0.00014247,2]
[334610442,1723336547889,182.28563981,0.00025,120]
[334610443,1723336632814,170.31929762,0.00025,120]
[334610444,1723336655068,852.1,0.00027,120]
[334610454,1723337072237,165.096199,0.00014247,2]
[334610457,1723337132119,-234.91813601,0.00018437,2]
[334610458,1723337140611,3604.70923389,0.00014247,2]
[334610459,1723337200360,309.18067122,0.00014247,2]
[334610460,1723337238120,-154.79103211,0.00017269,2]
[334610461,1723337238141,-234.40584322,0.00018437,2]
[334610462,1723337240637,3601.06607929,0.00014247,2]
[334610463,1723337241114,-433.40897067,0.00018437,2]
[334610464,1723337241136,-336.2837431,0.00018512,2]
[334610465,1723337241156,-404.331537,0.00018904,2]
[334610466,1723337241177,-300.45765344,0.00019147,2]
[334610467,1723337241196,-168.516466,0.00019178,2]
[334610468,1723337241222,-300.0,0.00019255,2]
[334610469,1723337241244,-300.0,0.00019255,2]
[334610470,1723337241269,-3089.86893809,0.00019256,2]
[334610471,1723337241292,-150.0,0.00019516,2]
[334610472,1723337241313,-961.97481851,0.00019547,2]
[334610473,1723337241333,-169.79468679,0.00019547,2]
[334610491,1723337431763,-329.16322832,0.00019177,2]
[334610492,1723337431823,-1.62826027,0.00019177,2]
[334610493,1723337431833,-189.8862147,0.00019177,2]
[334610494,1723337431842,-686.71867861,0.00019256,2]
[334610495,1723337431852,-414.35272639,0.00019256,2]
[334610496,1723337431861,-418.0659988,0.00019447,2]
[334610497,1723337431873,-1711.65974662,0.00019447,2]
[334610498,1723337431883,-309.39678743,0.00019451,2]
[334610499,1723337431893,-543.46251259,0.00019451,2]
[334610500,1723337431902,-540.53135974,0.00019451,4]
[334610501,1723337431912,-850.0235469,0.00019451,2]
[334610502,1723337431921,-154.80649189,0.00019451,2]
[334610503,1723337431931,-154.77557542,0.00019451,2]
[334610504,1723337431940,-215.69921839,0.00019477,2]
[334610505,1723337431949,-833.78545195,0.00019477,2]
[334610506,1723337431959,-346.25826434,0.00019477,2]
[334610507,1723337431970,-265.79812131,0.00019477,2]
[334610508,1723337431980,-609.96934965,0.00019477,2]
[334610512,1723337437771,-43.10819,0.00019477,2]
[334610513,1723337437781,-271.42971182,0.00019477,2]
[334610514,1723337437791,-201.51336171,0.00019477,2]
[334610515,1723337437801,-500.0,0.00019546,2]
[334610516,1723337437811,-500.0,0.00019546,2]
[334610517,1723337437820,-500.0,0.00019546,2]
[334610518,1723337437830,-500.0,0.00019546,2]
[334610519,1723337437839,-400.31300333,0.00019546,2]
[334610520,1723337437849,-107.8140108,0.00019547,2]
[334610521,1723337437861,-510.94687324,0.00019547,2]
[334610522,1723337437873,-325.38,0.00019547,2]
[334610523,1723337437885,-670.05,0.00019547,2]
[334610524,1723337437900,-3847.05038745,0.00019547,2]
[334610535,1723337439798,-2113.87618897,0.00019547,2]
[334610536,1723337439808,-95696.92754448,0.00019547,2]
[334610537,1723337439818,-154.76012181,0.00019547,2]
[334610538,1723337439827,-154.98939785,0.00019547,2]
[334610539,1723337439838,-174.56235819,0.00019547,2]
[334610540,1723337439847,-205.1880395,0.00019547,2]
[334610541,1723337439857,-154.91692567,0.00019547,2]
[334610542,1723337439867,-243.58226389,0.00019547,2]
[334610543,1723337439876,-5261.47013064,0.00019697,2]
[334610544,1723337439886,-87190.33386436,0.0001987,2]
[334610575,1723337445973,-43.24409726,0.0001987,2]
[334610577,1723337485111,227.65968442,0.0001501,2]
[334610578,1723337485133,156.68889152,0.0001501,2]
[334610579,1723337485156,2521.98556887,0.0001501,2]
[334610580,1723337485179,208.05668127,0.0001501,2]
[334610581,1723337485207,4442.96317392,0.0001501,2]
[334610583,1723337506492,1182.47236006,0.0001501,2]
[334610584,1723337510333,10000.0,0.0001501,2]
[334610585,1723337519635,186.889413,0.00014247,2]
[334610586,1723337536419,3286.54146647,0.0001501,2]
[334610588,1723337591469,10000.0,0.00025,60]
[334610589,1723337650357,10000.0,0.0001501,2]
[334610590,1723337703029,838.62777096,0.0001501,2]
[334610591,1723337720970,154.76012181,0.0001501,2]
[334610603,1723338042809,166.133662,0.00014247,2]
[334610606,1723338338142,-291.32285652,0.0001585,2]
[334610608,1723338448115,-300.0,0.00015743,2]
[334610609,1723338448135,-14250.1835598,0.00015744,2]
[334610610,1723338448159,-174.56235819,0.00016347,2]
[334610611,1723338448178,-156.99277567,0.00016347,2]
[334610612,1723338448198,-196.46287817,0.00016532,2]
[334610613,1723338448220,-574.36235626,0.00017019,2]
[334610614,1723338448241,-420.0,0.00017317,2]
[334610615,1723338448261,-159.8866242,0.00017928,2]
[334610616,1723338448282,-684.86174432,0.00018899,2]
[334610617,1723338448305,-384.11496,0.00018904,2]
[334610618,1723338448329,-154.76012181,0.00018969,2]
[334610619,1723338448354,-154.76012181,0.00018969,2]
[334610620,1723338448375,-154.76012181,0.00018976,2]
[334610621,1723338448401,-5209.808405,0.00019046,2]
[334610622,1723338448427,-587.0,0.00019049,2]
[334610623,1723338448449,-301.12995539,0.00019153,2]
[334610624,1723338448470,-167.567879,0.00019178,2]
[334610625,1723338448490,-154.79092116,0.00019212,2]
[334610626,1723338448510,-159.27209445,0.00019212,2]
[334610627,1723338448534,-532.14086008,0.00019212,2]
[334610628,1723338448557,-356.53097519,0.00019212,2]
[334610629,1723338448577,-5209.808405,0.00019359,2]
[334610630,1723338448597,-189.8862147,0.00019451,2]
[334610631,1723338448619,-737.88422452,0.00019451,2]
[334610632,1723338448644,-207.1717265,0.00019452,2]
[334610633,1723338448667,-329.5511926,0.00019478,2]
[334610634,1723338448691,-5209.808406,0.00019539,2]
[334610635,1723338448714,-494.60608226,0.00019547,2]
[334610636,1723338448737,-453.97855281,0.00019547,2]
[334610637,1723338448759,-1895.18487645,0.00019562,2]
[334610639,1723338546150,-205.33810873,0.00015751,2]
[334610640,1723338546171,-186.66189127,0.00018,2]
[334610641,1723338549616,204.817356,0.00014247,2]
[334610642,1723338554105,-937.96850518,0.00018,2]
[334610643,1723338554133,-986.52802137,0.00018,2]
[334610703,1723338631930,-154.76012181,0.00018921,2]
[334610705,1723338631940,-247.34565765,0.00018999,2]
[334610707,1723338631950,-203.39414706,0.00019166,2]
[334610710,1723338631962,-96.60585294,0.00019166,2]
[334610712,1723338631972,-300.0,0.00019166,2]
[334610713,1723338631981,-69.39414706,0.00019167,2]
[334610716,1723338631993,-85.80139073,0.00019167,2]
[334610718,1723338632002,-922.86469729,0.00019167,2]
[334610723,1723338632174,-8627.42590287,0.00019167,2]
[334610780,1723338638547,-364.909212,0.00018904,2]
[334610781,1723338638559,-4699.89295964,0.00019167,2]
[334610782,1723338638570,-166.19262576,0.00019167,2]
[334610783,1723338638582,-449.04070624,0.00019167,2]
[334610784,1723338638593,-154.85285271,0.00019167,2]
[334610785,1723338638617,-287.82937614,0.00019167,2]
[334610786,1723338638635,-181.3776817,0.00019177,2]
[334610787,1723338639127,-667.56588118,0.00019177,2]
[334610788,1723338639139,-180.13700729,0.00019256,2]
[334610789,1723338639156,-154.77557542,0.00019451,2]
[334610790,1723338639168,-200.10186013,0.00019477,2]
[334610791,1723338639182,-288.33769885,0.00019477,2]
[334610792,1723338639195,-201.61989958,0.00019477,2]
[334610793,1723338639207,-686.71867861,0.00019547,2]
[334610794,1723338639221,-357.32322289,0.00019547,2]
[334610795,1723338639236,-661.85323273,0.00019592,2]
[334610796,1723338639249,-193.132617,0.00019663,2]
[334610797,1723338639262,-151.685375,0.00019663,2]
[334610798,1723338639276,-1702.37289313,0.00019778,2]
[334610799,1723338639290,-232.30580043,0.00019779,2]
[334610800,1723338639305,-26875.07832056,0.0001987,2]
[334610801,1723338639365,-37977.50324364,0.0001987,2]
[334610802,1723338639377,-500.0,0.00019879,2]
[334610803,1723338639389,-266.70144481,0.00019879,2]
[334610804,1723338639401,-500.0,0.00019879,2]
[334610805,1723338639413,-452.02979014,0.00019879,2]
[334610806,1723338639425,-500.0,0.00019879,2]
[334610807,1723338639437,-500.0,0.00019879,2]
[334610808,1723338639449,-500.0,0.00019879,2]
[334610809,1723338639462,-500.0,0.00019879,2]
[334610810,1723338639475,-500.0,0.00019879,2]
[334610811,1723338639486,-500.0,0.00019879,2]
[334610812,1723338639500,-500.0,0.00019879,2]
[334610813,1723338639512,-500.0,0.00019879,2]
[334610814,1723338639527,-500.0,0.00019879,2]
[334610815,1723338639540,-3850.25646031,0.0001988,2]
[334610818,1723338640151,-93539.80310191,0.0001988,2]
[334610819,1723338640219,-12302.99999998,0.0001988,2]
[334610894,1723339064347,166.636575,0.00014247,2]
[334610896,1723339105321,3069.53576722,0.00014247,2]
[334610897,1723339152011,250.0,0.00027,120]
[334610898,1723339306758,1155.0,0.00027,120]
[334610899,1723339537820,204.817356,0.00014247,2]
[334610900,1723339555142,-159.886624,0.00018591,2]
[334610901,1723339555164,-164.71001359,0.00018629,2]
[334610908,1723339628143,-6390.70333262,0.00018557,2]
[334610909,1723339644142,-1921.02915518,0.00018557,2]
[334610910,1723339653101,-220.50514646,0.00018402,2]
[334610921,1723339757102,-14250.1835598,0.00018356,2]
[334610922,1723339757123,-14250.1835598,0.00018356,2]
[334610923,1723339757145,-913.17015926,0.00018402,2]
[334610924,1723339757167,-4439.36435254,0.00018402,2]